fUSD/lending_fUSD_20260413
["ID","MTS","AMOUNT","RATE_DAILY","PERIOD"]
[420387413,1776066632645,-150.99,0.00024137,2]
[420387414,1776066632665,-6373.45371312,0.00024137,2]
[420387415,1776066632688,-772.83206182,0.00024137,2]
[420387416,1776066632870,-1264.87422506,0.00024137,2]
[420387418,1776066632882,-497.0,0.0002437,2]
[420387419,1776066632895,-166.66,0.00024481,30]
[420387421,1776066632905,-150.0,0.000245,2]
[420387424,1776066632918,-500.0,0.00024513,2]
[420387425,1776066632929,-500.0,0.00024568,2]
[420387426,1776066632942,-2321.7285,0.00024575,10]
[420387428,1776066632954,-210.0,0.00024614,2]
[420387429,1776066632965,-5305.06420051,0.00024614,2]
[420387431,1776066632979,-151.0,0.00024614,2]
[420387432,1776066632991,-200.0,0.00024615,2]
[420387433,1776066633003,-500.0,0.00024615,2]
[420387434,1776066633017,-1235.18214925,0.00024615,2]
[420387435,1776066633029,-499.79981618,0.00024615,2]
[420387436,1776066633039,-201.55934797,0.00024615,2]
[420387437,1776066633051,-151.0,0.00024615,2]
[420387439,1776066633068,-151.0,0.00024615,2]
[420387440,1776066633084,-151.0,0.00024615,2]
[420387441,1776066633099,-151.0,0.00024615,2]
[420387443,1776066633113,-151.0,0.00024615,2]
[420387445,1776066633126,-151.0,0.00024615,2]
[420387447,1776066633143,-151.0,0.00024615,2]
[420387449,1776066633158,-151.0,0.00024615,2]
[420387450,1776066633176,-151.0,0.00024615,2]
[420387452,1776066633192,-151.0,0.00024615,2]
[420387454,1776066633213,-151.0,0.00024615,2]
[420387456,1776066633232,-500.0,0.00024615,2]
[420387458,1776066633256,-156.48408535,0.00024615,2]
[420387460,1776066633268,-500.0,0.00024615,2]
[420387462,1776066633283,-500.0,0.00024615,2]
[420387464,1776066633305,-500.0,0.00024615,2]
[420387465,1776066633316,-175.58609614,0.00024615,2]
[420387467,1776066633341,-500.0,0.00024615,2]
[420387469,1776066633361,-500.0,0.00024615,2]
[420387471,1776066633391,-500.0,0.00024615,2]
[420387473,1776066633404,-500.0,0.00024615,2]
[420387474,1776066633430,-500.0,0.00024615,2]
[420387476,1776066633447,-500.0,0.00024615,2]
[420387478,1776066633471,-500.0,0.00024615,2]
[420387480,1776066633486,-500.0,0.00024615,2]
[420387482,1776066633498,-500.0,0.00024615,2]
[420387483,1776066633520,-500.0,0.00024615,2]
[420387485,1776066633536,-279.9045709,0.00024615,2]
[420387490,1776066633718,-500.0,0.00024623,2]
[420387491,1776066633737,-173.2,0.0002463,2]
[420387492,1776066633750,-1416.85037571,0.0002463,2]
[420387493,1776066633763,-208.85,0.0002463,2]
[420387494,1776066633776,-169.8,0.0002463,2]
[420387495,1776066633789,-244.75,0.0002463,2]
[420387496,1776066633802,-500.0,0.0002463,2]
[420387497,1776066633814,-500.0,0.00024678,2]
[420387498,1776066633825,-500.0,0.00024733,2]
[420387499,1776066633841,-500.0,0.00024788,2]
[420387500,1776066633852,-315.21,0.00024793,2]
[420387501,1776066633867,-500.0,0.00024843,2]
[420387502,1776066633892,-1516.6,0.00024845,2]
[420387503,1776066633907,-503.37955602,0.00024904,2]
[420387504,1776066633920,-166.66,0.00024976,30]
[420387505,1776066633936,-327.58,0.00025042,2]
[420387506,1776066633952,-219.78,0.00025087,2]
[420387507,1776066633964,-200.0,0.00025163,2]
[420387508,1776066633979,-150.4458,0.000252,2]
[420387509,1776066633993,-1131.4,0.00025265,120]
[420387510,1776066634007,-1000.0,0.00025265,2]
[420387511,1776066634026,-500.0,0.00025299,2]
[420387512,1776066634043,-236.816,0.00025309,2]
[420387513,1776066634067,-500.0,0.0002531,2]
[420387514,1776066634084,-150.0,0.00025324,2]
[420387515,1776066634094,-350.0,0.00025357,2]
[420387516,1776066634116,-500.0,0.00025399,2]
[420387517,1776066634127,-500.0,0.00025399,2]
[420387518,1776066634138,-500.0,0.00025399,2]
[420387519,1776066634158,-500.0,0.00025399,2]
[420387520,1776066634170,-500.0,0.00025399,2]
[420387521,1776066634180,-500.0,0.00025399,2]
[420387522,1776066634198,-244.76,0.00025468,2]
[420387523,1776066634210,-166.66,0.00025471,30]
[420387524,1776066634221,-350.0,0.00025653,3]
[420387525,1776066634234,-994.0,0.00025678,2]
[420387526,1776066634245,-994.0,0.00025678,2]
[420387527,1776066634258,-994.0,0.00025678,2]
[420387528,1776066634272,-994.0,0.00025678,2]
[420387529,1776066634284,-994.0,0.00025678,2]
[420387530,1776066634297,-994.0,0.00025678,2]
[420387531,1776066634312,-281.71316019,0.00025678,2]
[420387532,1776066634329,-994.0,0.00025678,2]
[420387533,1776066634344,-208.71651699,0.00025678,2]
[420387534,1776066634364,-591.72670208,0.00025678,2]
[420387535,1776066634379,-402.27329792,0.00025678,2]
[420387536,1776066634396,-994.0,0.00025678,2]
[420387537,1776066634411,-994.0,0.00025678,2]
[420387538,1776066634422,-150.0,0.00025678,2]
[420387539,1776066634443,-994.0,0.00025678,2]
[420387540,1776066634461,-500.0,0.00025678,2]
[420387541,1776066634476,-150.0,0.00025678,2]
[420387542,1776066634493,-994.0,0.00025678,2]
[420387543,1776066634506,-150.0,0.00025678,2]
[420387544,1776066634522,-500.0,0.00025678,2]
[420387545,1776066634538,-994.0,0.00025678,2]
[420387546,1776066634550,-150.0,0.00025678,2]
[420387547,1776066634563,-500.0,0.00025678,2]
[420387548,1776066634577,-500.0,0.00025678,2]
[420387549,1776066634589,-184.62147222,0.00025678,2]
[420387550,1776066634602,-994.0,0.00025678,2]
[420387551,1776066634613,-500.0,0.00025678,2]
[420387552,1776066634626,-505.72457062,0.00025678,2]
[420387553,1776066634640,-994.0,0.00025678,2]
[420387554,1776066634651,-994.0,0.00025678,2]
[420387555,1776066634664,-994.0,0.00025678,2]
[420387556,1776066634681,-994.0,0.00025678,2]
[420387557,1776066634695,-994.0,0.00025678,2]
[420387558,1776066634706,-994.0,0.00025678,2]
[420387559,1776066634738,-994.0,0.00025678,2]
[420387560,1776066634756,-563.67329773,0.00025678,2]
[420387561,1776066634839,-430.32670227,0.00025678,2]
[420387562,1776066634852,-19.4783859,0.00025678,2]
[420387563,1776066634871,-974.5216141,0.00025678,2]
[420387564,1776066634883,-628.99595976,0.00025678,2]
[420387565,1776066634955,-386.00404024,0.00025678,2]
[420387566,1776066634967,-20.99595976,0.00025678,2]
[420387567,1776066635687,-295.99999997,0.00025678,2]
[420387579,1776066640749,-183.00404027,0.00025678,2]
[420387580,1776066640764,-198.18969757,0.00025678,2]
[420387581,1776066640780,-301.81030243,0.00025678,2]
[420387582,1776066640799,-94.89533959,0.00025678,2]
[420387583,1776066640825,-405.10466041,0.00025678,2]
[420387584,1776066640855,-350.0,0.00025678,2]
[420387585,1776066640871,-120.3953396,0.00025678,2]
[420387586,1776066640910,-29.6046604,0.00025678,2]
[420387587,1776066640937,-500.0,0.00025678,2]
[420387588,1776066640952,-500.0,0.00025678,2]
[420387589,1776066640968,-150.0,0.00025678,2]
[420387590,1776066640988,-500.0,0.00025678,2]
[420387591,1776066640998,-168.00965731,0.00025678,2]
[420387592,1776066641016,-500.0,0.00025678,2]
[420387593,1776066641038,-394.75837505,0.00025678,2]
[420387603,1776066643566,-105.24162495,0.00025678,2]
[420387604,1776066643578,-500.0,0.00025678,2]
[420387605,1776066643608,-500.0,0.00025678,2]
[420387606,1776066643618,-338.77378949,0.00025678,2]
[420387607,1776066643655,-161.22621051,0.00025678,2]
[420387608,1776066643667,-500.0,0.00025678,2]
[420387609,1776066643693,-231.20537673,0.00025678,2]
[420387610,1776066646791,-268.79462327,0.00025678,2]
[420387611,1776066646810,-500.0,0.00025678,2]
[420387612,1776066646820,-500.0,0.00025678,2]
[420387613,1776066646836,-595.95697511,0.00025678,2]
[420387615,1776066646851,-420.4502062,0.00025678,2]
[420387617,1776066646861,-1453.19819611,0.00025682,2]
[420387622,1776066646915,-100.48674863,0.00025682,2]
[420387624,1776066646929,-350.0,0.00025826,2]
[420387626,1776066646939,-564.6145,0.00025856,2]
[420387627,1776066646949,-500.0,0.00025872,15]
[420387628,1776066646967,-298.83953625,0.00025928,2]
[420387629,1776066646978,-4717.1595945,0.00025937,2]
[420387630,1776066646988,-500.0,0.00025956,7]
[420387631,1776066647003,-166.66,0.00025965,30]
[420387632,1776066647017,-150.893,0.00026,2]
[420387634,1776066647027,-444.20317062,0.00026004,10]
[420387635,1776066647184,-22.66030008,0.00026004,10]
[420387641,1776067217314,-163.71,0.00012314,2]
[420387642,1776067217337,-972.7278,0.000136,2]
[420387643,1776067217363,-150.0,0.00014138,2]
[420387644,1776067217385,-150.0,0.00014209,2]
[420387645,1776067217411,-486.3639,0.0001428,2]
[420387646,1776067217443,-150.0,0.00014483,2]
[420387647,1776067217472,-163.71,0.00014777,2]
[420387648,1776067217499,-250.0,0.0001496,2]
[420387649,1776067217531,-162.1213,0.0001564,2]
[420387650,1776067217557,-163.71,0.00017239,2]
[420387651,1776067217586,-500.0,0.00017973,2]
[420387652,1776067217621,-1200.0,0.00017999,2]
[420387653,1776067217677,-550.0,0.00017999,2]
[420387654,1776067217717,-300.0,0.00017999,2]
[420387655,1776067217755,-4637.657,0.00018,2]
[420387656,1776067219234,-509.0,0.000135,2]
[420387657,1776067219270,-9491.0,0.00018,2]
[420387658,1776067220824,-500.0,0.00017973,2]
[420387659,1776067220850,-9500.0,0.00018,2]
[420387660,1776067226985,-500.0,0.00017999,2]
[420387661,1776067227016,-9500.0,0.00018,2]
[420387662,1776067231211,-10000.0,0.00018,2]
[420387663,1776067253712,-1684.01,0.00018,2]
[420387665,1776067346210,-166.26851178,0.00017973,2]
[420387666,1776067346249,-9833.73148822,0.00018,2]
[420387667,1776067371235,-500.0,0.00017999,2]
[420387668,1776067371270,-246431.53987276,0.00018,2]
[420387670,1776067388780,500.0,0.00017999,2]
[420387671,1776067538990,-272.0,0.00018515,2]
[420387672,1776067553525,-500.0,0.00018515,2]
[420387673,1776067553567,-1151.0,0.00019646,2]
[420387674,1776067553607,-1036.01636642,0.00019647,2]
[420387675,1776067564342,500.0,0.00017873,2]
[420387676,1776067573174,509.0,0.00015515,2]
[420387677,1776067590702,255.2771148,0.0001827,2]
[420387678,1776067625230,228.0631487,0.0001827,2]
[420387679,1776067644462,-2413.5645873,0.00019647,2]
[420387680,1776067649119,-1037.13997516,0.00019647,2]
[420387681,1776067673672,8507.6697365,0.0001827,2]
[420387682,1776067673699,10000.01,0.0001827,2]
[420387683,1776067673733,7527.2993293,0.0001827,2]
[420387684,1776067706441,500.0,0.00017873,2]
[420387685,1776067759123,-1045.77806997,0.00019647,2]
[420387686,1776067775935,490.0,0.00017999,2]
[420387687,1776067779828,500.0,0.00017999,2]
[420387688,1776067789968,982.7106707,0.00018515,2]
[420387689,1776067789991,4027.97662377,0.00018515,2]
[420387690,1776067796900,172.9660446,0.00018268,2]
[420387692,1776067831722,-673.97872682,0.00019647,2]
[420387693,1776067831737,-2287.51677326,0.00019647,2]
[420387694,1776067831768,-128.06151767,0.00019647,2]
[420387697,1776067831778,-163.71,0.00019702,2]
[420387700,1776067831805,-250.0,0.00020367,2]
[420387703,1776067831815,-255.2771148,0.00020611,2]
[420387706,1776067831834,-300.0,0.00020653,2]
[420387709,1776067831855,-266.85421743,0.00020654,2]
[420387714,1776067831871,-1248.86929294,0.00020654,2]
[420387717,1776067831885,-3778.7015311,0.00020654,2]
[420387719,1776067831904,-818.42572312,0.00020654,2]
[420387721,1776067831916,-3058.63601826,0.00020654,2]
[420387725,1776067831948,-250.0,0.00020654,2]
[420387726,1776067831959,-16613.49228295,0.00020654,2]
[420387727,1776067831973,-502.0,0.00021452,2]
[420387728,1776067831989,-231.58,0.00021452,7]
[420387729,1776067831998,-250.0,0.00021612,2]
[420387730,1776067832018,-165.7,0.00021963,2]
[420387731,1776067832029,-150.0,0.000221,2]
[420387732,1776067832039,-1923.8407397,0.00022163,2]
[420387733,1776067832056,-163.71,0.00022165,2]
[420387734,1776067832066,-509.0,0.0002268,8]
[420387735,1776067832078,-165.7,0.00022695,2]
[420387736,1776067832091,-429.2668923,0.00022725,2]
[420387737,1776067832104,-456.41895414,0.00022746,2]
[420387738,1776067832119,-303.72702952,0.00022746,2]
[420387739,1776067832163,-393.653476,0.00022746,2]
[420387740,1776067832189,-464.72178409,0.00022746,2]
[420387741,1776067832204,-7232.676419,0.00022746,2]
[420387742,1776067832215,-471.84604647,0.00022746,2]
[420387839,1776067840288,-1465.35479139,0.00022746,2]
[420387840,1776067840317,-3625.13384008,0.00022746,2]
[420387841,1776067840351,-668.11,0.00022746,2]
[420387842,1776067840370,-1320.80765931,0.00022746,2]
[420387843,1776067840388,-150.1677,0.000229,2]
[420387844,1776067840400,-255.2771148,0.00022952,2]
[420387845,1776067840418,-350.0,0.00023037,2]
[420387846,1776067840428,-26034.9790658,0.00023038,2]
[420387847,1776067840438,-500.0,0.00023055,2]
[420387848,1776067840471,-171.23,0.00023189,2]
[420387849,1776067840481,-1878.81,0.00023226,2]
[420387850,1776067840512,-2497.57,0.00023397,2]
[420387851,1776067840522,-165.7,0.00023427,2]
[420387852,1776067840542,-2000.0,0.00023651,2]
[420387853,1776067840551,-150.3356,0.000238,2]
[420387854,1776067840563,-165.7,0.00024159,2]
[420387855,1776067840579,-585.79821784,0.0002452,2]
[420387856,1776067840589,-169.68875198,0.0002452,2]
[420387857,1776067840604,-500.0,0.0002452,2]
[420387858,1776067840616,-500.0,0.0002452,2]
[420387859,1776067840628,-500.0,0.0002452,2]
[420387860,1776067840639,-500.0,0.0002452,2]
[420387861,1776067840651,-500.0,0.0002452,2]
[420387862,1776067840672,-500.0,0.0002452,2]
[420387863,1776067840682,-500.0,0.0002452,2]
[420387864,1776067840694,-500.0,0.0002452,2]
[420387865,1776067840710,-500.0,0.0002452,2]
[420387866,1776067840719,-500.0,0.0002452,2]
[420387867,1776067840731,-400.37088403,0.0002452,2]
[420387868,1776067840742,-500.0,0.00024575,2]
[420387869,1776067840763,-648.0,0.00024591,10]
[420387870,1776067840774,-611.0,0.00024591,10]
[420387871,1776067840798,-150.5037,0.000246,2]
[420387872,1776067840808,-163.71,0.00024628,2]
[420387873,1776067840819,-2037.5,0.0002463,2]
[420387874,1776067840832,-1440.0,0.0002463,2]
[420387875,1776067840852,-1349.37,0.00024931,2]
[420387876,1776067840861,-172.9660446,0.00025159,2]
[420387877,1776067840870,-5000.0,0.00025195,2]
[420387878,1776067840886,-255.2771148,0.00025293,2]
[420387879,1776067840898,-150.6719,0.000254,2]
[420387880,1776067840908,-150.0,0.00025408,2]
[420387881,1776067840917,-150.0,0.00025408,2]
[420387882,1776067840932,-194.80964703,0.00025408,2]
[420387883,1776067840942,-150.0,0.00025408,2]
[420387884,1776067840951,-260.81079993,0.00025408,2]
[420387885,1776067840962,-500.0,0.00025408,2]
[420387886,1776067840975,-500.0,0.00025408,2]
[420387887,1776067841002,-500.0,0.00025408,2]
[420387888,1776067841012,-500.0,0.00025408,2]
[420387889,1776067841024,-500.0,0.00025408,2]
[420387890,1776067841035,-500.0,0.00025408,2]
[420387891,1776067841047,-416.1761962,0.00025408,2]
[420387892,1776067841059,-500.0,0.00025408,2]
[420387893,1776067841069,-500.0,0.00025408,2]
[420387894,1776067841079,-500.0,0.00025408,2]
[420387895,1776067841092,-500.0,0.00025408,2]
[420387896,1776067841106,-500.0,0.00025408,2]
[420387897,1776067841119,-500.0,0.00025408,2]
[420387898,1776067841132,-500.0,0.00025408,2]
[420387899,1776067841142,-500.0,0.00025408,2]
[420387900,1776067841152,-500.0,0.00025408,2]
[420387901,1776067841162,-500.0,0.00025408,2]
[420387902,1776067841171,-613.92194912,0.00025408,2]
[420387903,1776067841187,-167.08,0.00025415,2]
[420387904,1776067841199,-26034.9790658,0.00025422,2]
[420387905,1776067841209,-1852.42,0.00025461,2]
[420387906,1776067841218,-31108.06629337,0.00025534,2]
[420387907,1776067841381,-1798.13230663,0.00025534,2]
[420387908,1776067841390,-2500.0,0.00025534,2]
[420387909,1776067841411,-963.91458692,0.00025534,2]
[420387910,1776067841466,-151.0,0.00025408,10]
[420387911,1776067841475,-480.35657488,0.00025534,2]
[420387912,1776067841492,-1221.80961954,0.00025534,2]
[420387913,1776067841653,-652.47808125,0.00025534,2]
[420387914,1776067841685,-4112.97919488,0.00025534,2]
[420387915,1776067841695,-8615.34071419,0.00025535,2]
[420387916,1776067841719,-500.0,0.00025566,7]
[420387917,1776067841730,-500.0,0.00025566,7]
[420387918,1776067841744,-350.0,0.00025567,3]
[420387919,1776067841769,-168.0,0.0002561,2]
[420387920,1776067841778,-151.0,0.00025631,7]
[420387921,1776067841787,-500.0,0.00025633,2]
[420387922,1776067841808,-500.0,0.00025633,2]
[420387923,1776067841817,-500.0,0.00025633,2]
[420387924,1776067841827,-500.0,0.00025633,2]
[420387925,1776067841838,-500.0,0.00025633,2]
[420387926,1776067841863,-500.0,0.00025633,2]
[420387927,1776067841872,-500.0,0.00025633,2]
[420387928,1776067841882,-500.0,0.00025633,2]
[420387929,1776067841902,-500.0,0.00025633,2]
[420387930,1776067841923,-500.0,0.00025633,2]
[420387931,1776067841933,-500.0,0.00025633,2]
[420387932,1776067841957,-500.0,0.00025633,2]
[420387933,1776067842120,-500.0,0.00025633,2]
[420387934,1776067842131,-500.0,0.00025633,2]
[420387935,1776067842144,-187.88490298,0.00025633,2]
[420387948,1776067843137,-873.06415666,0.0002462,2]
[420387949,1776067843157,-3963.85509281,0.0002462,2]
[420387951,1776067843375,-268.17384304,0.0002462,2]
[420387952,1776067843509,-14016.9396175,0.0002462,2]
[420387953,1776067843531,-798.56660972,0.0002462,2]
[420387954,1776067843987,-0.02618698,0.0002462,2]
[420387955,1776067844034,-8829.97537342,0.0002462,2]
[420387956,1776067844050,-8947.21879473,0.0002462,2]
[420387957,1776067844070,-8943.78386462,0.0002462,2]
[420387958,1776067844083,-9077.54866152,0.0002462,2]
[420387959,1776067844111,-14029.80278619,0.0002462,2]
[420387960,1776067844135,-13090.8339884,0.0002462,2]
[420387961,1776067844172,-151.0,0.00025408,10]
[420387962,1776067844183,-151.0,0.00025408,10]
[420387963,1776067844205,-151.0,0.00025408,10]
[420387964,1776067844215,-151.0,0.00025408,10]
[420387965,1776067844230,-151.0,0.00025408,10]
[420387966,1776067844251,-24.99272837,0.00025633,2]
[420387967,1776067844266,-287.12236865,0.00025633,2]
[420387968,1776067844277,-500.0,0.00025633,2]
[420387969,1776067844302,-500.0,0.00025633,2]
[420387970,1776067844312,-500.0,0.00025633,2]
[420387971,1776067844325,-500.0,0.00025633,2]
[420387972,1776067844343,-500.0,0.00025633,2]
[420387973,1776067844355,-500.0,0.00025633,2]
[420387974,1776067844372,-500.0,0.00025633,2]
[420387975,1776067844389,-500.0,0.00025633,2]
[420387976,1776067844406,-500.0,0.00025633,2]
[420387977,1776067844427,-500.0,0.00025633,2]
[420387978,1776067844440,-218.67402486,0.00025633,2]
[420387979,1776067844451,-500.0,0.00025633,2]
[420387980,1776067844467,-500.0,0.00025633,2]
[420387981,1776067844478,-500.0,0.00025633,2]
[420387982,1776067844496,-500.0,0.00025633,2]
[420387983,1776067844520,-500.0,0.00025633,2]
[420387984,1776067844535,-500.0,0.00025633,2]
[420387985,1776067844555,-500.0,0.00025633,2]
[420387986,1776067844580,-500.0,0.00025633,2]
[420387987,1776067844595,-500.0,0.00025633,2]
[420387988,1776067844625,-500.0,0.00025633,2]
[420387989,1776067844644,-500.0,0.00025633,2]
[420387990,1776067844676,-300.0,0.00025634,10]
[420387991,1776067844695,-248.28303844,0.00025634,2]
[420387992,1776067844708,-503.20143222,0.00025634,2]
[420387993,1776067844727,-500.0,0.00025634,2]
[420387994,1776067844742,-176.1655681,0.00025634,2]
[420387995,1776067844756,-180.26727959,0.00025634,2]
[420387996,1776067844782,-500.0,0.00025634,2]
[420387997,1776067844792,-27.41555793,0.00025634,2]
[420387998,1776067846275,-151.0,0.00025408,10]
[420387999,1776067846313,-147.55737404,0.00025408,10]
[420388008,1776067846520,-3.44262596,0.00025408,10]
[420388009,1776067846540,-151.0,0.00025408,10]
[420388010,1776067846553,-151.0,0.00025408,10]
[420388011,1776067846567,-151.0,0.00025408,10]
[420388012,1776067846591,-151.0,0.00025408,10]
[420388013,1776067846603,-653.0,0.00025633,10]
[420388014,1776067846623,-432.08202411,0.00025634,2]
[420388015,1776067846636,-500.0,0.00025634,2]
[420388016,1776067846647,-500.0,0.00025634,2]
[420388017,1776067846665,-500.0,0.00025634,2]
[420388018,1776067846679,-626.07515818,0.00025634,2]
[420388019,1776067846690,-500.0,0.00025634,2]
[420388020,1776067846704,-290.41304309,0.00025634,2]
[420388021,1776067846720,-1461.93932367,0.00025635,2]
[420388022,1776067849663,-151.0,0.00025408,10]
[420388023,1776067849673,-151.0,0.00025408,10]
[420388024,1776067849683,-151.0,0.00025408,10]
[420388025,1776067849710,-151.0,0.00025408,10]
[420388026,1776067849731,-151.0,0.00025408,10]
[420388027,1776067849740,-151.0,0.00025408,10]
[420388028,1776067849751,-151.0,0.00025408,10]
[420388029,1776067849775,-653.0,0.00025634,10]
[420388030,1776067849800,-16566.10250855,0.00025635,2]
[420388033,1776067864626,292.0642,0.00018415,2]
[420388034,1776067933407,509.0,0.00015515,2]
[420388035,1776068133375,500.0,0.00017999,2]
[420388037,1776068169078,250.0,0.00013,2]
[420388039,1776068173227,500.0,0.00017999,2]
[420388040,1776068201558,500.0,0.00017999,2]
[420388041,1776068293606,509.0,0.00015515,2]
[420388042,1776068589559,5000.01,7.945e-05,2]
[420388043,1776068589583,5000.01,7.945e-05,2]
[420388044,1776068589614,5000.01,7.945e-05,2]
[420388045,1776068589645,5000.01,7.945e-05,2]
[420388046,1776068589678,5522.606209,7.945e-05,2]
[420388056,1776068661137,509.0,0.00015515,2]
[420388057,1776068664741,4491.01,0.000185,2]
[420388058,1776068664766,5000.01,0.000185,2]
[420388059,1776068664796,5000.01,0.000185,2]
[420388060,1776068664829,5000.01,0.000185,2]
[420388061,1776068666701,-5000.01,0.000185,2]
[420388062,1776068666860,-5000.01,0.000185,2]
[420388063,1776068666958,-5000.01,0.000185,2]
[420388064,1776068667486,-5000.01,0.000185,2]
[420388065,1776068669877,-5000.01,0.000185,2]
[420388066,1776068670114,-66.1,0.000185,2]
[420388067,1776068670134,-4867.81,0.000185,2]
[420388068,1776068721140,5000.01,0.00018515,2]
[420388069,1776068721165,2364.218058,0.00018515,2]
[420388071,1776068828189,5000.01,0.000185,3]
[420388072,1776068828220,531.99,0.000185,3]
[420388073,1776068846644,-171.72,0.00018608,2]
[420388074,1776068846674,-852.99608191,0.00018681,2]
[420388076,1776069013185,509.0,0.00015515,2]
[420388086,1776069032538,-151.0,0.00018681,2]
[420388087,1776069032550,-151.0,0.00018681,2]
[420388088,1776069032562,-76.35139607,0.00018681,2]
[420388089,1776069032590,-4070.65252202,0.00018681,2]
[420388090,1776069032603,-1200.0,0.00018699,2]
[420388091,1776069032616,-300.0,0.00018699,2]
[420388092,1776069032627,-173.0,0.00018699,2]
[420388093,1776069032642,-193.0,0.00018754,2]
[420388094,1776069032655,-250.0,0.00018754,2]
[420388095,1776069032667,-5000.0,0.00018932,2]
[420388096,1776069032686,-1000.0,0.00018999,2]
[420388097,1776069032697,-193.0,0.00019001,2]
[420388098,1776069032711,-150.99,0.000196,2]
[420388099,1776069032720,-150.0,0.000196,2]
[420388100,1776069032743,-321.43042392,0.000197,2]
[420388101,1776069032754,-321.43042392,0.000197,2]
[420388102,1776069032764,-321.43042392,0.000197,2]
[420388103,1776069032790,-208.89,0.000197,7]
[420388104,1776069032799,-250.0,0.00020469,2]
[420388105,1776069032809,-193.0,0.00020469,2]
[420388106,1776069032827,-250.0,0.00020469,2]
[420388107,1776069032838,-5000.0,0.00020469,2]
[420388108,1776069032848,-1680.0,0.00020488,2]
[420388109,1776069032870,-151.0995,0.000206,2]
[420388110,1776069032880,-255.0,0.00020601,2]
[420388111,1776069032893,-151.0,0.00020797,2]
[420388112,1776069032909,-152.2071,0.000215,2]
[420388113,1776069032924,-500.53624514,0.00021656,2]
[420388114,1776069032936,-164.54241716,0.00021656,2]
[420388115,1776069032947,-500.0,0.00021656,2]
[420388116,1776069032967,-282.21740561,0.00021656,2]
[420388117,1776069032980,-500.0,0.00021656,2]
[420388118,1776069032990,-500.0,0.00021656,2]
[420388119,1776069033009,-1000.0,0.00021742,2]
[420388120,1776069033020,-500.0,0.00021744,2]
[420388121,1776069033030,-151.0,0.00021744,2]
[420388122,1776069033044,-500.0,0.00021744,2]
[420388123,1776069033062,-151.0,0.00021744,2]
[420388124,1776069033071,-500.0,0.00021744,2]
[420388125,1776069033084,-151.0,0.00021744,2]
[420388126,1776069033106,-500.0,0.00021744,2]
[420388127,1776069033115,-151.0,0.00021744,2]
[420388128,1776069033131,-200.0,0.00021744,2]
[420388129,1776069033154,-151.0,0.00021744,2]
[420388130,1776069033172,-500.0,0.00021744,2]
[420388131,1776069033195,-151.0,0.00021744,2]
[420388132,1776069033207,-500.0,0.00021744,2]
[420388133,1776069033229,-151.0,0.00021744,2]
[420388134,1776069033238,-500.0,0.00021744,2]
[420388135,1776069033251,-151.0,0.00021744,2]
[420388136,1776069033268,-500.0,0.00021744,2]
[420388137,1776069033283,-151.0,0.00021744,2]
[420388138,1776069033295,-500.0,0.00021744,2]
[420388139,1776069033305,-151.0,0.00021744,2]
[420388140,1776069033327,-500.0,0.00021744,2]
[420388141,1776069033339,-151.0,0.00021744,2]
[420388142,1776069033348,-500.0,0.00021744,2]